bitfinex-derivatives/quotes_BTCF0:USTF0_20260111
["timestamp","ask_amount","ask_price","bid_price","bid_amount"]
[1768172236530,0.011049,90627.0,90621.0,0.09388]
[1768172238426,0.0919188,90635.0,90621.0,0.09388]
[1768172238625,0.08935746,90635.0,90621.0,0.09388]
[1768172239029,0.011049,90627.0,90621.0,0.09388]
[1768172240929,0.011049,90629.0,90621.0,0.09388]
[1768172243827,0.011048,90638.0,90621.0,0.18736499]
[1768172244227,0.1029668,90638.0,90621.0,0.09388]
[1768172244429,0.0919188,90638.0,90622.0,0.01105]
[1768172244630,0.0919188,90638.0,90621.0,0.09388]
[1768172244631,0.0919188,90636.0,90621.0,0.09388]
[1768172245433,0.011049,90631.0,90621.0,0.09388]
[1768172245737,0.00920105,90637.0,90621.0,0.09388]
[1768172246033,0.011049,90631.0,90621.0,0.09388]
[1768172246234,0.011049,90631.0,90621.0,0.18736499]
[1768172246534,0.011049,90631.0,90622.0,0.09348499]
[1768172248029,0.011049,90629.0,90622.0,0.09348499]
[1768172248224,0.011049,90632.0,90622.0,0.09348499]
[1768172250433,0.011049,90629.0,90622.0,0.09348499]
[1768172250736,0.011048,90639.0,90622.0,0.09348499]
[1768172250936,0.011048,90638.0,90622.0,0.09348499]
[1768172251338,0.011049,90631.0,90622.0,0.09348499]
[1768172251638,0.011049,90630.0,90622.0,0.09348499]
[1768172254738,0.011049,90630.0,90622.0,0.10283542]
[1768172256740,0.011049,90629.0,90622.0,0.10283542]
[1768172259243,0.011049,90631.0,90621.0,0.09388]
[1768172260238,0.1522228,90631.0,90620.0,0.94144]
[1768172260441,0.011049,90626.0,90620.0,0.94144]
[1768172261251,0.011049,90629.0,90620.0,0.94144]
[1768172263443,0.011049,90629.0,90620.0,1.04135798]
[1768172263644,0.11882556,90638.0,90620.0,1.04135798]
[1768172263844,0.09831238,90636.0,90620.0,0.94144]
[1768172264138,0.011049,90626.0,90620.0,0.94144]
[1768172266641,0.1522228,90630.0,90617.0,0.10926841]
[1768172266847,0.01105,90623.0,90617.0,0.09991798]
[1768172267146,0.01105,90623.0,90615.0,0.78444]
[1768172267847,0.01105,90623.0,90615.0,0.88435798]
[1768172269150,0.01105,90621.0,90615.0,0.88435798]
[1768172272347,0.01105,90617.0,90608.0,0.09991798]
[1768172273250,0.01105,90617.0,90608.0,0.10926841]
[1768172273650,0.1522228,90620.0,90608.0,0.10926841]
[1768172274651,0.01105,90617.0,90608.0,0.10926841]
[1768172276855,0.011051,90615.0,90604.0,0.09991798]
[1768172277551,0.011051,90611.0,90603.0,0.94188]
[1768172278452,0.011051,90609.0,90600.0,0.09991798]
[1768172278843,0.011051,90609.0,90600.0,0.01338198]
[1768172279038,0.011051,90609.0,90597.0,0.10926841]
[1768172282468,0.011052,90607.0,90597.0,0.10926841]
[1768172282857,0.011052,90607.0,90597.0,0.12265852]
[1768172284253,0.011052,90605.0,90597.0,0.12265852]
[1768172285763,0.011052,90604.0,90597.0,0.12265852]
[1768172286662,0.011052,90602.0,90597.0,0.12265852]
[1768172287462,0.011052,90602.0,90598.0,0.10187604]
[1768172287664,0.011052,90601.0,90598.0,0.09217231]
[1768172287866,0.011053,90598.0,90597.0,1.1e-07]
[1768172288057,0.00589715,90597.0,90594.0,3.1e-07]
[1768172288258,0.00589715,90597.0,90594.0,0.01354559]
[1768172288458,0.011052,90608.0,90594.0,0.01354559]
[1768172288667,0.011053,90599.0,90594.0,0.01354559]
[1768172288964,0.00849094,90599.0,90594.0,0.01354559]
[1768172289155,0.011053,90597.0,90594.0,0.01354528]
[1768172289357,0.00588448,90597.0,90583.0,0.380575]
[1768172289558,0.011053,90598.0,90583.0,0.380575]
[1768172289758,0.00849094,90598.0,90585.0,0.0203533]
[1768172290063,0.011052,90607.0,90589.0,0.09139765]
[1768172290264,0.011052,90607.0,90589.0,0.10069695]
[1768172291566,0.011053,90599.0,90589.0,0.10069695]
[1768172296871,0.011052,90606.0,90589.0,0.10069695]
[1768172298570,0.011053,90597.0,90589.0,0.10069695]
[1768172298769,0.00591742,90597.0,90589.0,0.10069695]
[1768172298974,0.011053,90593.0,90589.0,9.5e-07]
[1768172299273,0.00573405,90593.0,90589.0,9.5e-07]
[1768172300272,0.011054,90592.0,90589.0,9.5e-07]
[1768172300574,0.011052,90602.0,90589.0,9.5e-07]
[1768172300964,0.011052,90602.0,90590.0,6.5e-07]
[1768172301158,0.011052,90601.0,90590.0,6.5e-07]
[1768172301371,0.00574714,90593.0,90590.0,6.5e-07]
[1768172301571,0.011052,90601.0,90590.0,6.5e-07]
[1768172301775,0.011053,90600.0,90583.0,0.013701]
[1768172301974,0.1632758,90600.0,90582.0,0.00925796]
[1768172302364,0.011054,90589.0,90582.0,0.00925796]
[1768172302769,0.011054,90589.0,90582.0,0.02285633]
[1768172302978,0.011054,90589.0,90582.0,0.01359837]
[1768172303176,0.011054,90589.0,90581.0,0.09139765]
[1768172303375,0.011054,90587.0,90581.0,0.09139765]
[1768172304083,0.011054,90587.0,90581.0,0.10481319]
[1768172305387,0.011054,90586.0,90581.0,0.10481319]
[1768172305689,0.011055,90582.0,90578.0,0.0092993]
[1768172305986,0.011055,90583.0,90578.0,0.0092993]
[1768172306186,0.00586184,90583.0,90578.0,0.0092993]
[1768172306386,0.00586184,90583.0,90578.0,0.02274057]
[1768172306787,0.011055,90582.0,90578.0,0.02274057]
[1768172306987,0.00581267,90582.0,90578.0,0.02274057]
[1768172307589,0.011054,90591.0,90579.0,2e-08]
[1768172308283,0.011054,90591.0,90578.0,0.01344127]
[1768172308482,0.011055,90582.0,90577.0,0.09392]
[1768172308678,0.011054,90591.0,90577.0,0.1032193]
[1768172310390,0.011055,90583.0,90577.0,0.1032193]
[1768172310590,0.011054,90591.0,90577.0,0.1032193]
[1768172310989,0.011054,90591.0,90577.0,0.11681902]
[1768172311688,0.02062959,90600.0,90577.0,0.11681902]
[1768172311892,0.011054,90586.0,90578.0,0.0092993]
[1768172312095,0.011053,90599.0,90578.0,0.0092993]
[1768172313385,0.011053,90594.0,90578.0,0.0092993]
[1768172314792,0.011054,90587.0,90578.0,0.0092993]
[1768172315895,0.00587417,90587.0,90578.0,0.0092993]
[1768172316091,0.011054,90585.0,90578.0,0.0092993]
[1768172316299,0.00578848,90585.0,90577.0,0.01359972]
[1768172316496,0.02014983,90596.0,90572.0,0.11428487]
[1768172316693,0.02014983,90596.0,90572.0,0.16754207]
[1768172316902,0.011054,90585.0,90573.0,0.11039781]
[1768172317098,0.011053,90595.0,90573.0,0.16216006]
[1768172317298,0.011054,90585.0,90574.0,0.00930887]
[1768172317498,0.00578129,90585.0,90574.0,0.06107112]
[1768172317899,0.00578129,90585.0,90575.0,0.11039477]
[1768172318602,0.011053,90595.0,90575.0,0.11039477]
[1768172318802,0.02014983,90595.0,90575.0,0.11039477]
[1768172319891,0.00909683,90590.0,90575.0,0.11039477]
[1768172320092,0.011054,90584.0,90572.0,0.10775943]
[1768172320293,0.011054,90584.0,90572.0,0.15982469]
[1768172321296,0.011054,90584.0,90572.0,0.10775943]
[1768172321501,0.011054,90584.0,90572.0,0.1598495]
[1768172322288,0.011054,90584.0,90572.0,0.15948264]
[1768172322999,0.011054,90584.0,90572.0,0.10775943]
[1768172324202,0.011054,90584.0,90572.0,0.11881543]
[1768172324502,0.011054,90584.0,90572.0,0.17053864]
[1768172324701,0.011054,90584.0,90572.0,0.11881543]
[1768172325102,0.011054,90586.0,90572.0,0.11881543]
[1768172325600,0.011054,90586.0,90572.0,0.17165881]
[1768172326089,0.011054,90586.0,90572.0,0.17042346]
[1768172327610,0.011054,90586.0,90572.0,0.11881543]
[1768172327798,0.011054,90585.0,90572.0,0.15920696]
[1768172328106,0.011055,90583.0,90572.0,0.15920696]
[1768172328506,0.011055,90583.0,90572.0,0.10775943]
[1768172329900,0.011054,90587.0,90572.0,0.10775943]
[1768172330108,0.00909683,90590.0,90572.0,0.10775943]
[1768172330407,0.011054,90585.0,90572.0,0.10775943]
[1768172330905,0.011055,90583.0,90572.0,0.10775943]
[1768172334502,0.011055,90582.0,90572.0,0.10775943]
[1768172336909,0.011055,90581.0,90572.0,0.10775943]
[1768172344413,0.011055,90579.0,90572.0,0.10775943]
[1768172344617,0.011055,90577.0,90572.0,0.10775943]
[1768172344821,0.011055,90576.0,90572.0,0.10775943]
[1768172345718,0.011054,90585.0,90572.0,4.3e-07]
[1768172345913,0.011054,90585.0,90569.0,0.94248]
[1768172347312,0.011054,90585.0,90569.0,0.95765854]
[1768172348020,0.011055,90576.0,90569.0,0.95765854]
[1768172349821,0.011055,90579.0,90569.0,0.95765854]
[1768172351022,0.011055,90577.0,90569.0,0.95765854]
[1768172352125,0.011055,90578.0,90569.0,0.95765854]
[1768172352322,0.011054,90589.0,90569.0,0.95765854]
[1768172353324,0.011055,90579.0,90569.0,0.95765854]
[1768172354830,0.00975394,90581.0,90569.0,0.95765854]
[1768172355821,0.00975394,90581.0,90569.0,0.01517854]
[1768172356127,0.011056,90573.0,90565.0,0.09472066]
[1768172357932,0.011056,90571.0,90565.0,0.01549101]
[1768172358916,0.011056,90574.0,90566.0,0.00294627]
[1768172359725,0.011055,90577.0,90566.0,0.00294627]
[1768172360030,0.00975394,90581.0,90565.0,0.01549101]
[1768172360334,0.011055,90577.0,90565.0,0.01549101]
[1768172361125,0.011055,90577.0,90566.0,0.00494389]
[1768172361831,0.09392,90585.0,90566.0,0.00494389]
[1768172361832,0.011055,90578.0,90566.0,0.00494389]
[1768172366022,0.011055,90576.0,90566.0,0.00494389]
[1768172368225,0.011056,90575.0,90565.0,0.01549101]
[1768172372037,0.011055,90576.0,90565.0,0.01549101]
[1768172374343,0.011055,90576.0,90566.0,0.00153244]
[1768172375143,0.011055,90576.0,90565.0,0.01549101]
[1768172376145,0.0554269,90577.0,90565.0,0.01549101]
[1768172376551,0.011055,90577.0,90565.0,0.01549101]
[1768172377656,0.05438397,90577.0,90565.0,0.01549101]
[1768172377956,0.00987363,90577.0,90565.0,0.01549101]
[1768172378254,0.011056,90573.0,90565.0,0.01549101]
[1768172378858,0.00987363,90577.0,90565.0,0.01549101]
[1768172379964,0.011056,90571.0,90565.0,0.01549101]
[1768172381965,0.00987363,90576.0,90565.0,0.01549101]
[1768172383564,0.011056,90573.0,90565.0,0.01549101]
[1768172383870,0.011056,90571.0,90565.0,0.01549101]
[1768172385665,0.011056,90570.0,90565.0,0.01549101]
[1768172386964,0.15241867,90580.0,90565.0,0.01549101]
[1768172386965,0.10201737,90575.0,90565.0,1e-08]
[1768172387263,0.011057,90566.0,90561.0,0.00011263]
[1768172387454,0.011056,90568.0,90561.0,0.00011263]
[1768172388057,0.011057,90566.0,90561.0,0.01464935]
[1768172389766,0.011057,90565.0,90561.0,0.01464935]
[1768172394265,0.00987363,90570.0,90550.0,0.16200667]
[1768172394573,0.00987363,90568.0,90551.0,0.09396]
[1768172394868,0.011057,90562.0,90551.0,0.09396]
[1768172395167,0.011057,90565.0,90551.0,0.09412939]
[1768172395372,0.00011263,90564.0,90552.0,0.00016939]
[1768172396269,0.011057,90563.0,90552.0,0.01573778]
[1768172396466,0.00998626,90564.0,90551.0,0.09396]
[1768172397670,0.011057,90562.0,90551.0,0.10976271]
[1768172398563,0.02104326,90564.0,90551.0,0.10976271]
[1768172398869,0.01116963,90564.0,90551.0,0.11053289]
[1768172399066,0.01116963,90564.0,90552.0,0.00077018]
[1768172400077,0.00011263,90564.0,90551.0,0.10976271]
[1768172400265,0.00011263,90564.0,90551.0,0.1105943]
[1768172400457,0.00011263,90564.0,90552.0,0.011058]
[1768172400774,0.00998626,90564.0,90553.0,0.09396]
[1768172401671,0.011057,90560.0,90553.0,0.09396]
[1768172401872,0.011058,90559.0,90552.0,0.09396]
[1768172402071,0.011057,90562.0,90552.0,0.09396]
[1768172402374,0.00987363,90557.0,90551.0,0.01580271]
[1768172402575,0.00987363,90557.0,90547.0,0.12796795]
[1768172403867,0.00918511,90551.0,90532.0,0.011061]
[1768172404068,0.00918511,90551.0,90531.0,0.05050991]
[1768172404271,0.00918511,90549.0,90534.0,0.011061]
[1768172404472,0.00918511,90549.0,90532.0,0.5826]
[1768172404770,0.00918511,90546.0,90539.0,0.01106]
[1768172405070,0.15241867,90560.0,90532.0,0.5826]
[1768172405464,0.15241867,90560.0,90544.0,0.011059]
[1768172405664,0.15241867,90560.0,90546.0,0.011059]
[1768172406772,0.15241867,90560.0,90543.0,0.011059]
[1768172407070,0.09865592,90557.0,90543.0,0.011059]
[1768172407371,0.00918511,90558.0,90532.0,0.67957823]
[1768172407372,0.10784103,90549.0,90532.0,0.5826]
[1768172407572,0.10784103,90549.0,90540.0,0.01106]
[1768172408472,0.09865592,90549.0,90540.0,0.01106]
[1768172409070,0.09865592,90549.0,90534.0,0.011061]
[1768172409568,0.00918511,90544.0,90531.0,0.02665139]
[1768172409764,0.09876855,90543.0,90531.0,0.02665139]
[1768172409959,0.09876855,90543.0,90531.0,0.12061139]
[1768172410366,0.09876855,90543.0,90531.0,0.02665139]
[1768172410967,0.09876855,90543.0,90531.0,0.01559039]
[1768172411166,0.09876855,90543.0,90530.0,0.09396]
[1768172411372,0.09876855,90543.0,90530.0,0.24637867]
[1768172411573,0.00011263,90543.0,90530.0,0.24637867]
[1768172411766,0.00011263,90543.0,90530.0,0.25743967]
[1768172412275,0.00011263,90543.0,90532.0,0.011061]
[1768172412875,0.00011263,90543.0,90532.0,0.10221771]
[1768172413078,0.00011263,90543.0,90534.0,0.10221771]
[1768172413576,0.00011263,90543.0,90534.0,0.00933923]
[1768172413767,0.00011263,90543.0,90534.0,0.10221771]
[1768172414476,0.00011263,90543.0,90535.0,0.01106]
[1768172415680,0.00011263,90543.0,90537.0,0.01106]
[1768172416278,0.00011263,90543.0,90534.0,0.11327771]
[1768172417180,0.00011263,90543.0,90535.0,0.01106]
[1768172417379,0.00011263,90543.0,90534.0,0.10221771]
[1768172417578,0.00011263,90543.0,90535.0,0.01106]
[1768172417885,0.00011263,90543.0,90534.0,0.10221771]
[1768172418066,0.00011263,90543.0,90532.0,0.011061]
[1768172418272,0.00011263,90543.0,90533.0,0.011061]
[1768172418670,0.00011263,90543.0,90532.0,0.09287848]
[1768172419071,0.00011263,90543.0,90532.0,0.10393948]
[1768172419474,0.00011263,90543.0,90534.0,0.011061]
[1768172420179,0.00011263,90543.0,90536.0,0.01106]
[1768172420381,0.00011263,90543.0,90535.0,0.01106]
[1768172420986,0.011056,90570.0,90553.0,0.011058]
[1768172421276,0.16347467,90570.0,90553.0,0.011058]
[1768172421670,0.17303514,90570.0,90552.0,0.09287848]
[1768172421976,0.27261043,90570.0,90552.0,0.09287848]
[1768172422182,0.12019176,90568.0,90551.0,0.011058]
[1768172422884,0.10913576,90568.0,90551.0,0.011058]
[1768172423085,0.10913576,90568.0,90553.0,0.011058]
[1768172423384,0.00956047,90578.0,90556.0,0.09287848]
[1768172423582,0.00956047,90576.0,90558.0,0.15241867]
[1768172423885,0.00956047,90576.0,90558.0,0.24529715]
[1768172424083,0.00956047,90576.0,90561.0,0.011057]
[1768172426080,0.00956047,90575.0,90561.0,0.011057]
[1768172426277,0.24637867,90580.0,90559.0,0.09396]
[1768172426278,0.12019176,90568.0,90559.0,0.09396]
[1768172426472,0.10913576,90568.0,90559.0,0.09396]
[1768172426677,0.00956047,90568.0,90559.0,0.09396]
[1768172427284,0.011056,90569.0,90559.0,0.09396]
[1768172431879,0.26155443,90580.0,90559.0,0.18683848]
[1768172432080,0.011056,90574.0,90560.0,0.09287848]
[1768172433890,0.011055,90577.0,90560.0,0.09287848]
[1768172434093,0.011056,90575.0,90560.0,0.09287848]
[1768172435592,0.011056,90573.0,90560.0,0.09287848]
[1768172436596,0.011056,90573.0,90556.0,0.011058]
[1768172436789,0.011056,90570.0,90557.0,0.09396]
[1768172437284,0.011056,90570.0,90557.0,0.18792228]
[1768172437691,0.011056,90570.0,90558.0,0.09396228]
[1768172438897,0.011056,90572.0,90558.0,0.09396228]
[1768172440394,0.011056,90571.0,90558.0,0.09396228]
[1768172440895,0.011056,90574.0,90558.0,0.10502028]
[1768172441091,0.011056,90572.0,90558.0,0.10502028]
[1768172441488,0.011055,90576.0,90561.0,0.011057]
[1768172446300,0.011056,90575.0,90559.0,0.09396228]
[1768172446802,0.011056,90573.0,90559.0,0.09396228]
[1768172450307,0.011056,90572.0,90559.0,0.09396228]
[1768172450602,0.011056,90574.0,90559.0,0.09396228]
[1768172450803,0.00960824,90578.0,90559.0,0.09396228]
[1768172451395,0.011056,90573.0,90559.0,0.09396228]
[1768172455019,0.011056,90572.0,90557.0,0.011058]
[1768172455205,0.10420217,90573.0,90557.0,0.09396]
[1768172455709,0.00960824,90573.0,90557.0,0.09396]
[1768172456103,0.00960824,90573.0,90557.0,0.18792228]
[1768172456303,0.011056,90571.0,90558.0,0.09396228]
[1768172457112,0.011056,90569.0,90558.0,0.09396228]
[1768172458115,0.10420217,90579.0,90558.0,0.09396228]
[1768172458304,0.00960824,90578.0,90558.0,0.09396228]
[1768172459206,0.10420217,90578.0,90558.0,0.09396228]
[1768172459411,0.011056,90572.0,90558.0,0.09396228]
[1768172459909,0.011056,90570.0,90558.0,0.09396228]
[1768172463209,0.011056,90572.0,90558.0,0.10502028]
[1768172463511,0.011056,90575.0,90561.0,0.011057]
[1768172464012,0.011056,90575.0,90560.0,0.09396228]
[1768172464309,0.02066324,90578.0,90562.0,0.09613089]
[1768172464613,0.011056,90575.0,90562.0,0.09613089]
[1768172465612,0.00960824,90578.0,90562.0,0.09613089]
[1768172465812,0.011056,90574.0,90562.0,0.09613089]
[1768172466515,0.011056,90574.0,90559.0,0.09613089]
[1768172469713,0.011055,90577.0,90559.0,0.10514353]
[1768172469913,0.09396,90582.0,90569.0,0.09373908]
[1768172470210,0.011055,90583.0,90569.0,0.09373908]
[1768172470401,0.00551971,90585.0,90569.0,0.09373908]
[1768172470598,0.011054,90591.0,90579.0,0.10275172]
[1768172470812,0.02853105,90590.0,90579.0,0.10275172]
[1768172471012,0.02853105,90589.0,90579.0,0.10275172]
[1768172471213,0.011054,90591.0,90579.0,0.10275172]
[1768172471513,0.02852623,90590.0,90579.0,0.10275172]
[1768172471705,0.011054,90589.0,90579.0,0.10275172]
[1768172473317,0.05520173,90592.0,90579.0,0.10275172]
[1768172474013,0.09396,90600.0,90584.0,0.00901264]
[1768172474207,0.02851283,90599.0,90587.0,0.09373908]
[1768172474408,0.105011,90611.0,90597.0,0.09373908]
[1768172474713,0.01105,90617.0,90607.0,0.09373908]
[1768172474914,0.01105,90621.0,90607.0,0.09420429]
[1768172475214,0.09396,90628.0,90609.0,0.011051]
[1768172475414,0.011049,90630.0,90612.0,0.00901264]
[1768172475717,0.09396,90635.0,90612.0,0.00901264]
[1768172475718,0.09599378,90632.0,90612.0,0.00901264]
[1768172475917,0.011052,90607.0,90589.0,0.00901264]
[1768172476215,0.011053,90593.0,90578.0,0.13816152]
[1768172476415,0.09599378,90593.0,90578.0,0.01673488]
[1768172476605,0.09599378,90593.0,90570.0,0.00901264]
[1768172476809,0.011055,90582.0,90571.0,0.09396]
[1768172477012,0.011055,90580.0,90570.0,0.00901264]
[1768172477313,0.011055,90583.0,90571.0,0.09396]
[1768172477530,0.011055,90576.0,90567.0,0.09396]
[1768172477711,0.011055,90576.0,90564.0,0.02976823]
[1768172477908,0.011055,90576.0,90566.0,0.02976823]
[1768172478421,0.011055,90579.0,90567.0,0.02976823]
[1768172482022,0.011055,90577.0,90567.0,0.02976823]
[1768172482225,0.00963115,90585.0,90567.0,0.02976823]
[1768172482425,0.011055,90578.0,90567.0,0.02976823]
[1768172482912,0.011055,90581.0,90567.0,0.02976823]
[1768172485332,0.011055,90581.0,90568.0,0.03058853]
[1768172485622,0.011055,90579.0,90568.0,0.03058853]
[1768172486722,0.011055,90579.0,90568.0,0.03960117]
[1768172486920,0.011055,90582.0,90569.0,0.0361723]
[1768172487123,0.00963115,90590.0,90571.0,0.04518494]
[1768172487315,0.10562493,90595.0,90573.0,0.0361723]
[1768172487522,0.10562493,90595.0,90575.0,0.01819736]
[1768172487823,0.011054,90589.0,90575.0,0.01819736]
[1768172488024,0.011054,90587.0,90575.0,0.01819736]
[1768172490024,0.011054,90585.0,90575.0,0.01819736]
[1768172490918,0.011054,90588.0,90575.0,0.01819736]
[1768172491124,0.011054,90586.0,90575.0,0.01819736]
[1768172491311,0.011054,90589.0,90575.0,0.01819736]
[1768172491518,0.011054,90589.0,90576.0,0.00901264]
[1768172494730,0.15239115,90590.0,90576.0,0.00901264]
[1768172494925,0.09396,90597.0,90581.0,0.011055]
[1768172495324,0.011052,90600.0,90582.0,0.011055]
[1768172495527,0.16344315,90600.0,90582.0,0.011055]
[1768172495729,0.011053,90599.0,90582.0,0.011055]
[1768172496635,0.14880508,90607.0,90580.0,0.15239115]
[1768172496636,0.13775308,90607.0,90588.0,0.011054]
[1768172496833,0.011052,90603.0,90587.0,0.011054]
[1768172497539,0.011052,90605.0,90587.0,0.011054]
[1768172497734,0.011052,90605.0,90580.0,0.15239115]
[1768172498030,0.00998642,90606.0,90580.0,0.16344615]
[1768172498238,0.00998642,90606.0,90590.0,0.15239115]
[1768172498437,0.04379308,90607.0,90590.0,0.15239115]
[1768172498731,0.04379308,90607.0,90593.0,0.011053]
[1768172498936,0.011051,90615.0,90598.0,0.011053]
[1768172499133,0.011051,90613.0,90595.0,0.011053]
[1768172499730,0.011051,90611.0,90595.0,0.011053]
[1768172500132,0.00998642,90612.0,90592.0,0.011053]
[1768172500333,0.17342857,90610.0,90592.0,0.011053]
[1768172500726,0.17342857,90610.0,90589.0,0.105014]
[1768172500727,0.011052,90606.0,90589.0,0.105014]
[1768172500926,0.00998642,90599.0,90558.0,0.06443631]
[1768172501137,0.011053,90597.0,90577.0,0.011055]
[1768172501333,0.011054,90592.0,90578.0,0.09392]
[1768172501540,0.011054,90590.0,90578.0,0.09392]
[1768172502237,0.17343157,90590.0,90569.0,0.011056]
[1768172502432,0.02104042,90588.0,90569.0,0.011056]
[1768172502627,0.00998642,90587.0,90570.0,0.09392]
[1768172502832,0.011054,90586.0,90570.0,0.09392]
[1768172503540,0.00998642,90587.0,90570.0,0.09392]
[1768172503741,0.17343257,90580.0,90570.0,0.09392]
[1768172503940,0.011055,90578.0,90570.0,0.09392]
[1768172504335,0.011055,90576.0,90565.0,0.09944093]
[1768172504934,0.00998642,90578.0,90565.0,0.09944093]
[1768172506941,0.15239115,90580.0,90565.0,0.09944093]
[1768172508042,0.011055,90582.0,90565.0,0.09944093]
[1768172508043,0.00998642,90583.0,90566.0,0.011057]
[1768172508237,0.15239115,90580.0,90566.0,0.011057]
[1768172509329,0.15239115,90580.0,90565.0,0.09944093]
[1768172509839,0.15239115,90580.0,90566.0,0.011057]
[1768172510042,0.15239115,90580.0,90565.0,0.09944093]
[1768172511548,0.16344615,90580.0,90565.0,0.09944093]
[1768172512834,0.011056,90574.0,90565.0,0.09944093]
[1768172513033,0.00998642,90573.0,90564.0,0.09396]
[1768172513348,0.00998642,90571.0,90562.0,0.09396]
[1768172515539,0.15239115,90572.0,90562.0,0.09396]
[1768172515739,0.00998642,90576.0,90562.0,0.09396]
[1768172517953,0.15239115,90572.0,90562.0,0.09396]
[1768172518753,0.00998642,90576.0,90562.0,0.09396]
[1768172521451,0.15239115,90572.0,90562.0,0.09396]
[1768172524858,0.00998642,90576.0,90562.0,0.09396]
[1768172525863,0.00998642,90576.0,90562.0,0.105017]
[1768172527367,0.00998642,90576.0,90562.0,0.09396]
[1768172528868,0.02104242,90576.0,90562.0,0.09396]
[1768172530364,0.011056,90574.0,90562.0,0.09396]
[1768172533671,0.02005993,90571.0,90562.0,0.09396]
[1768172534371,0.00900393,90571.0,90551.0,0.01575578]
[1768172534557,0.00990321,90574.0,90540.0,0.15239115]
[1768172534558,0.15239115,90561.0,90552.0,0.09396]
[1768172534872,0.15239115,90561.0,90553.0,0.09396]
[1768172536154,0.011057,90565.0,90553.0,0.09396]
[1768172540878,0.00990321,90567.0,90553.0,0.09396]
[1768172541379,0.011057,90566.0,90553.0,0.09396]
[1768172543683,0.00900393,90568.0,90554.0,0.011058]
[1768172543981,0.011056,90569.0,90554.0,0.011058]
[1768172545278,0.011056,90569.0,90553.0,0.09396]
[1768172547780,0.011057,90567.0,90553.0,0.09396]
[1768172549084,0.16237086,90570.0,90553.0,0.105018]
[1768172549085,0.17342686,90570.0,90553.0,0.105018]
[1768172550280,0.16237086,90570.0,90553.0,0.09396]
[1768172550484,0.00990321,90569.0,90553.0,0.09396]
[1768172550981,0.011056,90568.0,90553.0,0.09396]
[1768172552373,0.011057,90567.0,90553.0,0.09396]
[1768172552586,0.011057,90565.0,90553.0,0.09396]
[1768172552773,0.00990321,90568.0,90553.0,0.09396]
[1768172554384,0.011057,90566.0,90553.0,0.09396]
[1768172554675,0.011056,90569.0,90553.0,0.09396]
[1768172554876,0.011057,90566.0,90552.0,0.01772864]
[1768172555082,0.00954344,90560.0,90541.0,0.01978961]
[1768172555278,0.00954344,90559.0,90537.0,0.09396]
[1768172555485,0.00954344,90559.0,90528.0,0.09396]
[1768172555486,0.00954344,90555.0,90528.0,0.09396]
[1768172555691,0.00954344,90536.0,90526.0,0.01978961]
[1768172555979,0.00954344,90530.0,90510.0,0.09396]
[1768172556184,0.03059228,90528.0,90510.0,0.09396]
[1768172556386,0.00954344,90531.0,90511.0,0.011063]
[1768172556589,0.11500884,90533.0,90511.0,0.011063]
[1768172556978,0.12455228,90533.0,90511.0,0.02818919]
[1768172557179,0.03059228,90530.0,90511.0,0.01712619]
[1768172557389,0.00954344,90531.0,90510.0,0.09396]
[1768172557687,0.00954344,90531.0,90510.0,0.12216651]
[1768172557888,0.00954344,90531.0,90511.0,0.01978961]
[1768172558078,0.02117738,90532.0,90511.0,0.01978961]
[1768172558476,0.00954344,90531.0,90511.0,0.01978961]
[1768172558983,0.00012854,90532.0,90511.0,0.01978961]
[1768172559177,0.03059228,90547.0,90515.0,0.01978961]
[1768172559380,0.09396,90546.0,90526.0,0.01978961]
[1768172559880,0.00954344,90536.0,90514.0,0.01978961]
[1768172560180,0.00954344,90527.0,90510.0,0.01714351]
[1768172560385,0.00954344,90527.0,90508.0,0.11374961]
[1768172560976,0.00954344,90531.0,90510.0,0.03085261]
[1768172561582,0.00954344,90531.0,90513.0,0.011063]
[1768172562281,0.00954344,90521.0,90505.0,0.00552459]
[1768172562592,0.15251916,90530.0,90505.0,0.00552459]
[1768172562593,0.00954344,90519.0,90505.0,0.00552459]
[1768172563182,0.02104884,90525.0,90506.0,0.01978961]
[1768172563486,0.0442179,90543.0,90521.0,0.01978961]
[1768172563487,0.1382179,90543.0,90521.0,0.01978961]
[1768172563780,0.0442179,90543.0,90521.0,0.01978961]
[1768172563981,0.00954344,90534.0,90523.0,0.011062]
[1768172564181,0.011061,90530.0,90507.0,0.11378961]
[1768172564387,0.00954344,90529.0,90511.0,0.011063]
[1768172564571,0.00954344,90529.0,90508.0,0.03085361]
[1768172565188,0.00954344,90529.0,90510.0,0.011063]
[1768172566478,0.00954344,90528.0,90510.0,0.011063]
[1768172567187,0.00954344,90527.0,90510.0,0.011063]
[1768172569290,0.00954344,90521.0,90510.0,0.011063]
[1768172569672,0.00954344,90521.0,90507.0,0.105064]
[1768172569879,0.00954344,90518.0,90507.0,0.094]
[1768172570184,0.00954344,90515.0,90496.0,0.01978961]
[1768172570377,0.00954344,90509.0,90497.0,0.06786598]
[1768172570689,0.00954344,90508.0,90497.0,0.06786598]
[1768172570889,0.02104884,90507.0,90497.0,0.06786598]
[1768172571184,0.02104884,90507.0,90491.0,0.011066]
[1768172571185,0.03059228,90507.0,90491.0,0.011066]
[1768172571384,0.00954344,90500.0,90485.0,0.01659281]
[1768172572085,0.02104884,90493.0,90485.0,0.00552581]
[1768172572389,0.00954344,90488.0,90477.0,0.01701286]
[1768172572593,0.00954344,90486.0,90477.0,0.00012639]
[1768172572782,0.00954344,90490.0,90477.0,0.00012639]
[1768172574279,0.00954344,90494.0,90477.0,0.00012639]
[1768172574479,0.00954344,90493.0,90478.0,0.011067]
[1768172575189,0.00954344,90493.0,90477.0,0.00012639]
[1768172575190,0.00954344,90493.0,90481.0,0.011067]
[1768172575683,0.105064,90504.0,90483.0,0.011067]
[1768172575684,0.00954344,90498.0,90483.0,0.011067]
[1768172575880,0.00954344,90497.0,90483.0,0.011067]
[1768172576080,0.03059228,90496.0,90483.0,0.011067]
[1768172576288,0.03059228,90495.0,90477.0,0.01119339]
[1768172576593,0.00954344,90494.0,90479.0,0.011067]
[1768172576796,0.00954344,90494.0,90482.0,0.011067]
[1768172576992,0.02104884,90500.0,90477.0,0.019916]
[1768172577194,0.11504884,90506.0,90482.0,0.01978961]
[1768172577392,0.11504884,90506.0,90491.0,0.011066]
[1768172577694,0.00954344,90505.0,90491.0,0.011066]
[1768172577894,0.00954344,90504.0,90491.0,0.011066]
[1768172578198,0.03059228,90503.0,90491.0,0.011066]
[1768172578494,0.00954344,90502.0,90491.0,0.011066]